[Event "Titled Tuesday Blitz May 30 Early 2023"]
[White "Papasimakopoulos, Alexandros"]
[Black "Pranesh M"]
[WhiteFideId "4244125"]
[BlackFideId "35028600"]
[WhiteElo "2359"]
[BlackElo "2437"]
[Result "1/2-1/2"]
[Round "07"]
[TimeControl "180+2"]
[Date "2023.05.30"]
[WhiteClock "0:01:06"]
[BlackClock "0:01:36"]

1. d4 {[%clk 0:03:00]}  d5 {[%clk 0:02:58]} 2. c4 {[%clk 0:03:01]}  e6 {[%clk 0:02:58]} 3. Nc3 {[%clk 0:03:01]}  Nf6 {[%clk 0:02:58]} 4. cxd5 {[%clk 0:03:02]}  exd5 {[%clk 0:02:58]} 5. Bg5 {[%clk 0:03:03]}  c6 {[%clk 0:02:58]} 6. e3 {[%clk 0:03:03]}  Bb4 {[%clk 0:02:57]} 7. Bd3 {[%clk 0:03:01]}  h6 {[%clk 0:02:55]} 8. Bh4 {[%clk 0:03:01]}  Nbd7 {[%clk 0:02:56]} 9. Nf3 {[%clk 0:03:01]}  Nf8 {[%clk 0:02:55]} 10. O-O {[%clk 0:03:01]}  Ng6 {[%clk 0:02:53]} 11. Bg3 {[%clk 0:02:59]}  O-O {[%clk 0:02:53]} 12. Qc2 {[%clk 0:02:58]}  Qe8 {[%clk 0:02:45]} 13. a3 {[%clk 0:02:53]}  Bxc3 {[%clk 0:02:45]} 14. bxc3 {[%clk 0:02:51]}  Ne4 {[%clk 0:02:43]} 15. c4 {[%clk 0:02:50]}  Bg4 {[%clk 0:02:40]} 16. Nd2 {[%clk 0:02:41]}  Nxg3 {[%clk 0:02:31]} 17. hxg3 {[%clk 0:02:40]}  Ne7 {[%clk 0:02:24]} 18. Rab1 {[%clk 0:02:39]}  Qd7 {[%clk 0:02:22]} 19. cxd5 {[%clk 0:02:34]}  cxd5 {[%clk 0:02:18]} 20. Qb3 {[%clk 0:02:29]}  b6 {[%clk 0:02:16]} 21. Nf3 {[%clk 0:02:22]}  Qd6 {[%clk 0:02:08]} 22. Rbc1 {[%clk 0:02:14]}  Rfc8 {[%clk 0:02:07]} 23. Ba6 {[%clk 0:02:14]}  Rc7 {[%clk 0:02:04]} 24. Qb4 {[%clk 0:02:06]}  Qd8 {[%clk 0:01:51]} 25. Qb2 {[%clk 0:01:44]}  Bc8 {[%clk 0:01:46]} 26. Rxc7 {[%clk 0:01:39]}  Qxc7 {[%clk 0:01:46]} 27. Rc1 {[%clk 0:01:39]}  Qd8 {[%clk 0:01:46]} 28. Bb5 {[%clk 0:01:27]}  Be6 {[%clk 0:01:42]} 29. Ba6 {[%clk 0:01:26]}  Bc8 {[%clk 0:01:41]} 30. Bd3 {[%clk 0:01:19]}  Be6 {[%clk 0:01:40]} 31. Ba6 {[%clk 0:01:06]}  Bc8 {[%clk 0:01:36]} 1/2-1/2


[Site "https://www.chess.com"]

[Event "Titled Tuesday Blitz May 30 Early 2023"]
[White "Asis Gargatagli, Hipolito"]
[Black "Vakhlamov, Igor L."]
[WhiteFideId "2260735"]
[BlackFideId "24126748"]
[WhiteElo "2557"]
[BlackElo "2407"]
[Result "1-0"]
[Round "07"]
[TimeControl "180+2"]
[Date "2023.05.30"]
[WhiteClock "0:00:07"]
[BlackClock "0:00:00"]

1. e4 {[%clk 0:03:00]}  c5 {[%clk 0:02:59]} 2. Nf3 {[%clk 0:03:00]}  e6 {[%clk 0:03:00]} 3. d4 {[%clk 0:03:00]}  cxd4 {[%clk 0:03:01]} 4. Nxd4 {[%clk 0:03:01]}  Nf6 {[%clk 0:03:01]} 5. Nc3 {[%clk 0:03:01]}  Nc6 {[%clk 0:03:02]} 6. a3 {[%clk 0:03:02]}  d5 {[%clk 0:03:01]} 7. exd5 {[%clk 0:03:00]}  exd5 {[%clk 0:02:57]} 8. Be3 {[%clk 0:02:57]}  Be7 {[%clk 0:02:56]} 9. Qd2 {[%clk 0:02:56]}  O-O {[%clk 0:02:55]} 10. O-O-O {[%clk 0:02:56]}  Ng4 {[%clk 0:02:47]} 11. Bf4 {[%clk 0:02:55]}  Bf6 {[%clk 0:02:39]} 12. Nb3 {[%clk 0:02:42]}  d4 {[%clk 0:02:32]} 13. Ne4 {[%clk 0:02:41]}  Bf5 {[%clk 0:02:07]} 14. Bd3 {[%clk 0:02:24]}  Rc8 {[%clk 0:01:10]} 15. Kb1 {[%clk 0:02:21]}  Nge5 {[%clk 0:01:09]} 16. Nxf6+ {[%clk 0:02:12]}  Qxf6 {[%clk 0:01:10]} 17. Bxe5 {[%clk 0:02:08]}  Qxe5 {[%clk 0:01:10]} 18. Rhe1 {[%clk 0:02:07]}  Qf6 {[%clk 0:01:08]} 19. Bxf5 {[%clk 0:02:04]}  Qxf5 {[%clk 0:01:09]} 20. f3 {[%clk 0:02:00]}  Rfd8 {[%clk 0:01:08]} 21. Qd3 {[%clk 0:01:59]}  Qf4 {[%clk 0:01:01]} 22. g3 {[%clk 0:01:58]}  Qc7 {[%clk 0:00:59]} 23. f4 {[%clk 0:01:56]}  a5 {[%clk 0:00:56]} 24. Re2 {[%clk 0:01:36]}  h6 {[%clk 0:00:55]} 25. Rde1 {[%clk 0:01:36]}  Qd6 {[%clk 0:00:48]} 26. Nd2 {[%clk 0:01:24]}  Qd5 {[%clk 0:00:44]} 27. Nc4 {[%clk 0:01:20]}  Qc5 {[%clk 0:00:40]} 28. Ne5 {[%clk 0:01:14]}  b5 {[%clk 0:00:38]} 29. Qf5 {[%clk 0:01:00]}  Nxe5 {[%clk 0:00:37]} 30. Rxe5 {[%clk 0:01:00]}  Qc4 {[%clk 0:00:32]} 31. Qd3 {[%clk 0:00:55]}  Qc6 {[%clk 0:00:13]} 32. Rxb5 {[%clk 0:00:48]}  Qg2 {[%clk 0:00:13]} 33. h4 {[%clk 0:00:44]}  Rd5 {[%clk 0:00:06]} 34. Rxd5 {[%clk 0:00:27]}  Qxd5 {[%clk 0:00:07]} 35. c4 {[%clk 0:00:23]}  Qc5 {[%clk 0:00:04]} 36. Re5 {[%clk 0:00:19]}  Qb6 {[%clk 0:00:01]} 37. Rd5 {[%clk 0:00:17]}  Rb8 {[%clk 0:00:02]} 38. Rb5 {[%clk 0:00:17]}  Qc7 {[%clk 0:00:02]} 39. Rxb8+ {[%clk 0:00:17]}  Qxb8 {[%clk 0:00:03]} 40. Qxd4 {[%clk 0:00:18]}  a4 {[%clk 0:00:02]} 41. c5 {[%clk 0:00:18]}  Qb5 {[%clk 0:00:03]} 42. Qc3 {[%clk 0:00:11]}  Qc6 {[%clk 0:00:03]} 43. Kc2 {[%clk 0:00:11]}  Qe4+ {[%clk 0:00:03]} 44. Kc1 {[%clk 0:00:11]}  Qh1+ {[%clk 0:00:03]} 45. Kd2 {[%clk 0:00:11]}  Qg2+ {[%clk 0:00:04]} 46. Kd1 {[%clk 0:00:11]}  Qh1+ {[%clk 0:00:04]} 47. Kc2 {[%clk 0:00:11]}  Qg2+ {[%clk 0:00:04]} 48. Kb1 {[%clk 0:00:12]}  Qh1+ {[%clk 0:00:05]} 49. Qc1 {[%clk 0:00:12]}  Qe4+ {[%clk 0:00:05]} 50. Ka1 {[%clk 0:00:12]}  Qc6 {[%clk 0:00:05]} 51. f5 {[%clk 0:00:12]}  h5 {[%clk 0:00:05]} 52. Ka2 {[%clk 0:00:11]}  Qd5+ {[%clk 0:00:05]} 53. Kb1 {[%clk 0:00:12]}  Qc6 {[%clk 0:00:06]} 54. Qc4 {[%clk 0:00:10]}  Qh1+ {[%clk 0:00:06]} 55. Kc2 {[%clk 0:00:10]}  Qg2+ {[%clk 0:00:06]} 56. Kc3 {[%clk 0:00:11]}  Qxg3+ {[%clk 0:00:07]} 57. Kb4 {[%clk 0:00:11]}  Qb8+ {[%clk 0:00:02]} 58. Kxa4 {[%clk 0:00:11]}  Qa8+ {[%clk 0:00:03]} 59. Kb3 {[%clk 0:00:11]}  Qb7+ {[%clk 0:00:03]} 60. Ka2 {[%clk 0:00:11]}  g5 {[%clk 0:00:03]} 61. fxg6 {[%clk 0:00:11]}  Kh8 {[%clk 0:00:00]} 62. c6 {[%clk 0:00:07]} 1-0


[Site "https://www.chess.com"]

[Event "Titled Tuesday Blitz May 30 Early 2023"]
[White "Boyer, Mahel"]
[Black "Sethuraman, S.P."]
[WhiteFideId "45102422"]
[BlackFideId "5021596"]
[WhiteElo "2439"]
[BlackElo "2543"]
[Result "1-0"]
[Round "07"]
[TimeControl "180+2"]
[Date "2023.05.30"]
[WhiteClock "0:00:02"]
[BlackClock "0:00:00"]

1. e4 {[%clk 0:02:50]}  c5 {[%clk 0:03:00]} 2. Nf3 {[%clk 0:02:50]}  Nc6 {[%clk 0:03:00]} 3. Bc4 {[%clk 0:02:46]}  e6 {[%clk 0:02:58]} 4. O-O {[%clk 0:02:46]}  Nge7 {[%clk 0:02:57]} 5. Re1 {[%clk 0:02:45]}  a6 {[%clk 0:02:53]} 6. c3 {[%clk 0:02:38]}  b5 {[%clk 0:02:49]} 7. Bf1 {[%clk 0:02:37]}  d5 {[%clk 0:02:48]} 8. exd5 {[%clk 0:02:33]}  Nxd5 {[%clk 0:02:48]} 9. a4 {[%clk 0:02:32]}  b4 {[%clk 0:02:48]} 10. d4 {[%clk 0:02:32]}  cxd4 {[%clk 0:02:39]} 11. Nxd4 {[%clk 0:02:29]}  Nxd4 {[%clk 0:02:31]} 12. Qxd4 {[%clk 0:02:30]}  Bb7 {[%clk 0:02:30]} 13. Nd2 {[%clk 0:02:25]}  bxc3 {[%clk 0:02:29]} 14. bxc3 {[%clk 0:02:26]}  Qf6 {[%clk 0:02:24]} 15. Qg4 {[%clk 0:01:11]}  h5 {[%clk 0:02:18]} 16. Qh3 {[%clk 0:01:04]}  Qxc3 {[%clk 0:02:06]} 17. Qxc3 {[%clk 0:00:29]}  Nxc3 {[%clk 0:02:07]} 18. Bb2 {[%clk 0:00:30]}  Bb4 {[%clk 0:02:05]} 19. Nc4 {[%clk 0:00:31]}  O-O {[%clk 0:01:54]} 20. Re3 {[%clk 0:00:30]}  Nd5 {[%clk 0:01:44]} 21. Rg3 {[%clk 0:00:31]}  f6 {[%clk 0:01:38]} 22. Be2 {[%clk 0:00:29]}  Nf4 {[%clk 0:01:36]} 23. Bf3 {[%clk 0:00:26]}  Rac8 {[%clk 0:01:27]} 24. Ne3 {[%clk 0:00:12]}  Bxf3 {[%clk 0:01:22]} 25. Rxf3 {[%clk 0:00:12]}  e5 {[%clk 0:01:23]} 26. g3 {[%clk 0:00:09]}  Nd3 {[%clk 0:01:09]} 27. Rb1 {[%clk 0:00:08]}  Ne1 {[%clk 0:01:03]} 28. Rf5 {[%clk 0:00:08]}  g6 {[%clk 0:01:02]} 29. Bxe5 {[%clk 0:00:02]}  gxf5 {[%clk 0:01:00]} 30. Bf4 {[%clk 0:00:02]}  Nd3 {[%clk 0:00:49]} 31. Bh6 {[%clk 0:00:02]}  Rfd8 {[%clk 0:00:45]} 32. Nxf5 {[%clk 0:00:02]}  Rc1+ {[%clk 0:00:44]} 33. Bxc1 {[%clk 0:00:01]}  Kf7 {[%clk 0:00:40]} 34. Be3 {[%clk 0:00:01]}  a5 {[%clk 0:00:40]} 35. Nd4 {[%clk 0:00:02]}  Rc8 {[%clk 0:00:38]} 36. Rd1 {[%clk 0:00:02]}  Ne5 {[%clk 0:00:37]} 37. Nb5 {[%clk 0:00:02]}  Kg6 {[%clk 0:00:36]} 38. Bf4 {[%clk 0:00:02]}  Nf3+ {[%clk 0:00:33]} 39. Kg2 {[%clk 0:00:02]}  Ne1+ {[%clk 0:00:34]} 40. Kf1 {[%clk 0:00:02]}  Nf3 {[%clk 0:00:20]} 41. Kg2 {[%clk 0:00:03]}  Ng5 {[%clk 0:00:14]} 42. Bxg5 {[%clk 0:00:02]}  fxg5 {[%clk 0:00:14]} 43. Rd5 {[%clk 0:00:02]}  Rc2 {[%clk 0:00:14]} 44. Nd4 {[%clk 0:00:02]}  Ra2 {[%clk 0:00:14]} 45. Nf3 {[%clk 0:00:03]}  g4 {[%clk 0:00:10]} 46. Nh4+ {[%clk 0:00:03]}  Kh6 {[%clk 0:00:10]} 47. Nf5+ {[%clk 0:00:04]}  Kg6 {[%clk 0:00:09]} 48. Nh4+ {[%clk 0:00:05]}  Kh6 {[%clk 0:00:09]} 49. Nf5+ {[%clk 0:00:03]}  Kh7 {[%clk 0:00:09]} 50. Ne3 {[%clk 0:00:02]}  Kg6 {[%clk 0:00:08]} 51. Nc4 {[%clk 0:00:02]}  Rxa4 {[%clk 0:00:07]} 52. Ne5+ {[%clk 0:00:03]}  Kf6 {[%clk 0:00:07]} 53. Nd3 {[%clk 0:00:04]}  Bc3 {[%clk 0:00:07]} 54. Rxh5 {[%clk 0:00:03]}  Rd4 {[%clk 0:00:07]} 55. Nf4 {[%clk 0:00:04]}  Kg7 {[%clk 0:00:06]} 56. Rc5 {[%clk 0:00:03]}  Bb4 {[%clk 0:00:05]} 57. Ne6+ {[%clk 0:00:04]}  Kf6 {[%clk 0:00:05]} 58. Nxd4 {[%clk 0:00:04]}  Bxc5 {[%clk 0:00:05]} 59. Nb3 {[%clk 0:00:04]}  Bb4 {[%clk 0:00:04]} 60. f3 {[%clk 0:00:04]}  a4 {[%clk 0:00:04]} 61. Nc1 {[%clk 0:00:04]}  Bd2 {[%clk 0:00:02]} 62. Na2 {[%clk 0:00:02]}  Kf5 {[%clk 0:00:00]} 63. fxg4+ {[%clk 0:00:02]} 1-0


[Site "https://www.chess.com"]

[Event "Titled Tuesday Blitz May 30 Early 2023"]
[White "Kukhmazov, Arsen"]
[Black "Agibileg, Uurtsaikh"]
[WhiteFideId "24108260"]
[BlackFideId "4901606"]
[WhiteElo "2396"]
[BlackElo "2353"]
[Result "1-0"]
[Round "07"]
[TimeControl "180+2"]
[Date "2023.05.30"]
[WhiteClock "0:00:09"]
[BlackClock "0:00:00"]

1. d4 {[%clk 0:02:59]}  Nf6 {[%clk 0:02:57]} 2. c4 {[%clk 0:02:59]}  g6 {[%clk 0:02:52]} 3. h4 {[%clk 0:02:59]}  d5 {[%clk 0:02:51]} 4. Nc3 {[%clk 0:02:56]}  Bg7 {[%clk 0:02:50]} 5. cxd5 {[%clk 0:02:56]}  Nxd5 {[%clk 0:02:50]} 6. h5 {[%clk 0:02:57]}  Nxc3 {[%clk 0:02:47]} 7. bxc3 {[%clk 0:02:57]}  c5 {[%clk 0:02:47]} 8. h6 {[%clk 0:02:45]}  Bf6 {[%clk 0:02:47]} 9. Nf3 {[%clk 0:02:45]}  Nc6 {[%clk 0:02:44]} 10. e3 {[%clk 0:02:42]}  Bg4 {[%clk 0:02:43]} 11. Be2 {[%clk 0:02:28]}  O-O {[%clk 0:02:32]} 12. O-O {[%clk 0:02:19]}  Qd5 {[%clk 0:02:25]} 13. Rb1 {[%clk 0:02:00]}  Rab8 {[%clk 0:02:16]} 14. c4 {[%clk 0:01:59]}  Qh5 {[%clk 0:02:15]} 15. d5 {[%clk 0:02:00]}  Ne5 {[%clk 0:02:14]} 16. e4 {[%clk 0:01:57]}  Nxf3+ {[%clk 0:02:13]} 17. Bxf3 {[%clk 0:01:57]}  Be5 {[%clk 0:02:13]} 18. Re1 {[%clk 0:01:51]}  Qh2+ {[%clk 0:02:13]} 19. Kf1 {[%clk 0:01:51]}  Qh1+ {[%clk 0:02:11]} 20. Ke2 {[%clk 0:01:51]}  Qxg2 {[%clk 0:02:12]} 21. Qd3 {[%clk 0:01:51]}  f5 {[%clk 0:02:05]} 22. Bxg4 {[%clk 0:01:30]}  fxg4 {[%clk 0:01:50]} 23. Be3 {[%clk 0:01:30]}  g3 {[%clk 0:01:45]} 24. Rf1 {[%clk 0:01:29]}  Rf7 {[%clk 0:01:28]} 25. Kd2 {[%clk 0:01:16]}  b6 {[%clk 0:01:14]} 26. Rg1 {[%clk 0:01:07]}  Rxf2+ {[%clk 0:01:13]} 27. Bxf2 {[%clk 0:01:06]}  Qxf2+ {[%clk 0:01:14]} 28. Qe2 {[%clk 0:01:05]}  Qd4+ {[%clk 0:01:07]} 29. Qd3 {[%clk 0:01:02]}  Qf2+ {[%clk 0:01:07]} 30. Qe2 {[%clk 0:01:01]}  Bf4+ {[%clk 0:00:43]} 31. Kd3 {[%clk 0:01:01]}  Qd4+ {[%clk 0:00:42]} 32. Kc2 {[%clk 0:01:01]}  Rf8 {[%clk 0:00:40]} 33. Rbf1 {[%clk 0:00:44]}  Be5 {[%clk 0:00:33]} 34. Rxf8+ {[%clk 0:00:44]}  Kxf8 {[%clk 0:00:34]} 35. Rf1+ {[%clk 0:00:43]}  Ke8 {[%clk 0:00:32]} 36. Rb1 {[%clk 0:00:10]}  Qc3+ {[%clk 0:00:29]} 37. Kd1 {[%clk 0:00:11]}  g2 {[%clk 0:00:19]} 38. Qxg2 {[%clk 0:00:11]}  Qd3+ {[%clk 0:00:19]} 39. Kc1 {[%clk 0:00:12]}  Qc3+ {[%clk 0:00:17]} 40. Kd1 {[%clk 0:00:07]}  Qd4+ {[%clk 0:00:17]} 41. Qd2 {[%clk 0:00:07]}  Qxe4 {[%clk 0:00:16]} 42. Qc2 {[%clk 0:00:07]}  Qh1+ {[%clk 0:00:14]} 43. Kd2 {[%clk 0:00:07]}  Bf4+ {[%clk 0:00:14]} 44. Kc3 {[%clk 0:00:07]}  Qf3+ {[%clk 0:00:13]} 45. Qd3 {[%clk 0:00:05]}  Be5+ {[%clk 0:00:13]} 46. Kc2 {[%clk 0:00:05]}  Qf2+ {[%clk 0:00:13]} 47. Qd2 {[%clk 0:00:05]}  Qf5+ {[%clk 0:00:12]} 48. Qd3 {[%clk 0:00:06]}  Qf2+ {[%clk 0:00:12]} 49. Qd2 {[%clk 0:00:06]}  Qf3 {[%clk 0:00:11]} 50. Qd3 {[%clk 0:00:06]}  Qg2+ {[%clk 0:00:09]} 51. Qd2 {[%clk 0:00:06]}  Qg4 {[%clk 0:00:09]} 52. Qd3 {[%clk 0:00:07]}  Kd7 {[%clk 0:00:07]} 53. Re1 {[%clk 0:00:07]}  Qg2+ {[%clk 0:00:03]} 54. Re2 {[%clk 0:00:07]}  Qg3 {[%clk 0:00:03]} 55. Qxg3 {[%clk 0:00:07]}  Bxg3 {[%clk 0:00:03]} 56. Kd3 {[%clk 0:00:07]}  Bf4 {[%clk 0:00:03]} 57. Rf2 {[%clk 0:00:08]}  Bxh6 {[%clk 0:00:03]} 58. Rf7 {[%clk 0:00:09]}  Bf4 {[%clk 0:00:03]} 59. Rxh7 {[%clk 0:00:09]}  g5 {[%clk 0:00:04]} 60. Ke4 {[%clk 0:00:10]}  a6 {[%clk 0:00:03]} 61. a4 {[%clk 0:00:10]}  b5 {[%clk 0:00:03]} 62. axb5 {[%clk 0:00:10]}  axb5 {[%clk 0:00:04]} 63. cxb5 {[%clk 0:00:11]}  Bd6 {[%clk 0:00:04]} 64. Rg7 {[%clk 0:00:10]}  Kc7 {[%clk 0:00:05]} 65. Kd3 {[%clk 0:00:09]}  Kb6 {[%clk 0:00:05]} 66. Kc4 {[%clk 0:00:09]}  e6 {[%clk 0:00:00]} 67. dxe6 {[%clk 0:00:09]} 1-0


[Site "https://www.chess.com"]

[Event "Titled Tuesday Blitz May 30 Early 2023"]
[White "Kozak, Adam"]
[Black "Jakubowski, Krzysztof"]
[WhiteFideId "753246"]
[BlackFideId "1112848"]
[WhiteElo "2469"]
[BlackElo "2359"]
[Result "1-0"]
[Round "07"]
[TimeControl "180+2"]
[Date "2023.05.30"]
[WhiteClock "0:01:38"]
[BlackClock "0:00:43"]

1. e4 {[%clk 0:02:52]}  c5 {[%clk 0:02:59]} 2. Nc3 {[%clk 0:02:50]}  Nc6 {[%clk 0:02:58]} 3. f4 {[%clk 0:02:50]}  g6 {[%clk 0:02:56]} 4. Bb5 {[%clk 0:02:48]}  Nd4 {[%clk 0:02:55]} 5. Nf3 {[%clk 0:02:48]}  Nxb5 {[%clk 0:02:53]} 6. Nxb5 {[%clk 0:02:48]}  a6 {[%clk 0:02:52]} 7. Nc3 {[%clk 0:02:47]}  Bg7 {[%clk 0:02:51]} 8. d3 {[%clk 0:02:46]}  d6 {[%clk 0:02:49]} 9. O-O {[%clk 0:02:46]}  Nf6 {[%clk 0:02:49]} 10. Qe1 {[%clk 0:02:45]}  O-O {[%clk 0:02:48]} 11. Qh4 {[%clk 0:02:44]}  e6 {[%clk 0:02:36]} 12. f5 {[%clk 0:02:44]}  Nd7 {[%clk 0:02:30]} 13. Bg5 {[%clk 0:02:38]}  f6 {[%clk 0:02:28]} 14. fxe6 {[%clk 0:02:25]}  fxg5 {[%clk 0:02:28]} 15. Nxg5 {[%clk 0:02:26]}  h6 {[%clk 0:02:28]} 16. exd7 {[%clk 0:02:25]}  hxg5 {[%clk 0:02:20]} 17. dxc8=Q {[%clk 0:02:23]}  Rxc8 {[%clk 0:02:05]} 18. Rxf8+ {[%clk 0:02:21]}  Qxf8 {[%clk 0:02:04]} 19. Qxg5 {[%clk 0:02:19]}  Bd4+ {[%clk 0:01:57]} 20. Kh1 {[%clk 0:02:18]}  Kg7 {[%clk 0:01:58]} 21. Ne2 {[%clk 0:02:11]}  Bxb2 {[%clk 0:01:46]} 22. Rb1 {[%clk 0:02:08]}  Qf6 {[%clk 0:01:28]} 23. Qxf6+ {[%clk 0:02:06]}  Bxf6 {[%clk 0:01:29]} 24. Rxb7+ {[%clk 0:02:06]}  Kh6 {[%clk 0:01:30]} 25. c4 {[%clk 0:01:57]}  Rf8 {[%clk 0:01:27]} 26. Ng1 {[%clk 0:01:56]}  g5 {[%clk 0:01:24]} 27. h3 {[%clk 0:01:55]}  g4 {[%clk 0:01:22]} 28. hxg4 {[%clk 0:01:55]}  Kg5 {[%clk 0:01:23]} 29. Nf3+ {[%clk 0:01:49]}  Kxg4 {[%clk 0:01:23]} 30. Kg1 {[%clk 0:01:49]}  Bd4+ {[%clk 0:01:11]} 31. Nxd4 {[%clk 0:01:44]}  cxd4 {[%clk 0:01:11]} 32. Rb6 {[%clk 0:01:44]}  Kf4 {[%clk 0:01:00]} 33. Kf2 {[%clk 0:01:43]}  Kg4+ {[%clk 0:01:00]} 34. Ke2 {[%clk 0:01:43]}  Kg3 {[%clk 0:01:01]} 35. Rxd6 {[%clk 0:01:42]}  Rf2+ {[%clk 0:01:01]} 36. Ke1 {[%clk 0:01:40]}  Rxa2 {[%clk 0:00:57]} 37. Rxd4 {[%clk 0:01:40]}  Kxg2 {[%clk 0:00:57]} 38. e5 {[%clk 0:01:40]}  Kf3 {[%clk 0:00:54]} 39. Re4 {[%clk 0:01:39]}  a5 {[%clk 0:00:51]} 40. e6 {[%clk 0:01:38]}  a4 {[%clk 0:00:43]} 41. e7 {[%clk 0:01:38]} 1-0


[Site "https://www.chess.com"]

[Event "Titled Tuesday Blitz May 30 Early 2023"]
[White "Fridman, Daniel"]
[Black "Arabidze, Meri"]
[WhiteFideId "11600454"]
[BlackFideId "13604040"]
[WhiteElo "2525"]
[BlackElo "2405"]
[Result "1-0"]
[Round "07"]
[TimeControl "180+2"]
[Date "2023.05.30"]
[WhiteClock "0:01:25"]
[BlackClock "0:00:00"]

1. d4 {[%clk 0:03:00]}  Nf6 {[%clk 0:02:58]} 2. Nf3 {[%clk 0:03:01]}  e6 {[%clk 0:02:59]} 3. c4 {[%clk 0:03:00]}  b6 {[%clk 0:02:57]} 4. g3 {[%clk 0:03:00]}  Bb7 {[%clk 0:02:55]} 5. Bg2 {[%clk 0:03:00]}  Bb4+ {[%clk 0:02:55]} 6. Bd2 {[%clk 0:02:59]}  Bxd2+ {[%clk 0:02:53]} 7. Qxd2 {[%clk 0:02:59]}  O-O {[%clk 0:02:54]} 8. O-O {[%clk 0:02:59]}  d6 {[%clk 0:02:53]} 9. Qc2 {[%clk 0:02:57]}  Nbd7 {[%clk 0:02:53]} 10. Nc3 {[%clk 0:02:57]}  e5 {[%clk 0:02:51]} 11. dxe5 {[%clk 0:02:48]}  dxe5 {[%clk 0:02:51]} 12. Rfd1 {[%clk 0:02:48]}  Qc8 {[%clk 0:02:40]} 13. Bh3 {[%clk 0:02:41]}  Qe8 {[%clk 0:02:33]} 14. Nb5 {[%clk 0:02:36]}  Qe7 {[%clk 0:01:59]} 15. Nxc7 {[%clk 0:02:33]}  Rac8 {[%clk 0:01:59]} 16. Nb5 {[%clk 0:02:33]}  e4 {[%clk 0:01:53]} 17. Nfd4 {[%clk 0:02:21]}  e3 {[%clk 0:01:48]} 18. f3 {[%clk 0:02:18]}  g6 {[%clk 0:01:28]} 19. Nxa7 {[%clk 0:02:17]}  Rc5 {[%clk 0:01:27]} 20. Nab5 {[%clk 0:02:01]}  Rh5 {[%clk 0:01:20]} 21. Bg2 {[%clk 0:02:01]}  Ne5 {[%clk 0:01:20]} 22. Qc3 {[%clk 0:01:56]}  Neg4 {[%clk 0:00:56]} 23. fxg4 {[%clk 0:01:52]}  Nxg4 {[%clk 0:00:57]} 24. Bxb7 {[%clk 0:01:40]}  Rxh2 {[%clk 0:00:42]} 25. Nf3 {[%clk 0:01:34]}  Rf2 {[%clk 0:00:14]} 26. Bd5 {[%clk 0:01:31]}  h5 {[%clk 0:00:09]} 27. Rd4 {[%clk 0:01:26]}  Rxe2 {[%clk 0:00:00]} 28. Qd3 {[%clk 0:01:25]} 1-0


[Site "https://www.chess.com"]

[Event "Titled Tuesday Blitz May 30 Early 2023"]
[White "RobertDowneyJr0111"]
[Black "Zemlyanskii, Ivan"]
[BlackFideId "24249971"]
[WhiteElo "2634"]
[BlackElo "2421"]
[Result "0-1"]
[Round "07"]
[TimeControl "180+2"]
[Date "2023.05.30"]
[WhiteClock "0:00:00"]
[BlackClock "0:00:06"]

1. e4 {[%clk 0:03:00]}  c5 {[%clk 0:02:59]} 2. Nf3 {[%clk 0:03:00]}  e6 {[%clk 0:02:58]} 3. d4 {[%clk 0:03:01]}  cxd4 {[%clk 0:02:59]} 4. Nxd4 {[%clk 0:03:02]}  Nf6 {[%clk 0:03:00]} 5. Nc3 {[%clk 0:03:02]}  Nc6 {[%clk 0:03:00]} 6. g3 {[%clk 0:03:02]}  d5 {[%clk 0:02:49]} 7. Bg2 {[%clk 0:02:54]}  Bc5 {[%clk 0:02:35]} 8. Nb3 {[%clk 0:02:48]}  Bb4 {[%clk 0:02:28]} 9. Bd2 {[%clk 0:02:24]}  O-O {[%clk 0:02:12]} 10. O-O {[%clk 0:02:20]}  Bxc3 {[%clk 0:02:08]} 11. Bxc3 {[%clk 0:02:20]}  Nxe4 {[%clk 0:02:08]} 12. Bxe4 {[%clk 0:02:17]}  dxe4 {[%clk 0:02:09]} 13. Qg4 {[%clk 0:02:16]}  e5 {[%clk 0:02:03]} 14. Qxe4 {[%clk 0:02:16]}  f6 {[%clk 0:02:00]} 15. Rfd1 {[%clk 0:02:09]}  Qe7 {[%clk 0:01:59]} 16. Qd5+ {[%clk 0:02:04]}  Be6 {[%clk 0:01:56]} 17. Qd6 {[%clk 0:02:05]}  Qf7 {[%clk 0:01:54]} 18. Nc5 {[%clk 0:02:04]}  Bg4 {[%clk 0:01:52]} 19. Qd3 {[%clk 0:01:27]}  Rfd8 {[%clk 0:01:43]} 20. Qf1 {[%clk 0:01:24]}  Rxd1 {[%clk 0:01:42]} 21. Rxd1 {[%clk 0:01:25]}  Bxd1 {[%clk 0:01:43]} 22. Qxd1 {[%clk 0:01:26]}  b6 {[%clk 0:01:40]} 23. Qf3 {[%clk 0:01:20]}  Rc8 {[%clk 0:01:30]} 24. Ne4 {[%clk 0:01:20]}  Qe6 {[%clk 0:01:30]} 25. g4 {[%clk 0:01:19]}  Ne7 {[%clk 0:01:27]} 26. h3 {[%clk 0:01:15]}  Nd5 {[%clk 0:01:22]} 27. Qd3 {[%clk 0:01:09]}  Nf4 {[%clk 0:01:17]} 28. Qe3 {[%clk 0:00:56]}  Qxa2 {[%clk 0:01:12]} 29. Kh2 {[%clk 0:00:55]}  Qb1 {[%clk 0:01:05]} 30. Nd6 {[%clk 0:00:47]}  Rd8 {[%clk 0:00:59]} 31. Bxe5 {[%clk 0:00:39]}  Nd5 {[%clk 0:00:29]} 32. Qd3 {[%clk 0:00:21]}  Qa2 {[%clk 0:00:25]} 33. b3 {[%clk 0:00:20]}  Qa5 {[%clk 0:00:07]} 34. Nb7 {[%clk 0:00:20]}  Qe1 {[%clk 0:00:07]} 35. Nxd8 {[%clk 0:00:17]}  Qxf2+ {[%clk 0:00:08]} 36. Kh1 {[%clk 0:00:17]}  Qe1+ {[%clk 0:00:09]} 37. Kg2 {[%clk 0:00:17]}  Qxe5 {[%clk 0:00:10]} 38. Qc4 {[%clk 0:00:14]}  Kf8 {[%clk 0:00:08]} 39. Qc8 {[%clk 0:00:12]}  Qe2+ {[%clk 0:00:07]} 40. Kg1 {[%clk 0:00:12]}  Qe1+ {[%clk 0:00:06]} 41. Kh2 {[%clk 0:00:13]}  Qd2+ {[%clk 0:00:07]} 42. Kh1 {[%clk 0:00:12]}  Ne7 {[%clk 0:00:07]} 43. Qa8 {[%clk 0:00:10]}  Qc1+ {[%clk 0:00:07]} 44. Kg2 {[%clk 0:00:09]}  Qxc2+ {[%clk 0:00:08]} 45. Kg1 {[%clk 0:00:10]}  Qxb3 {[%clk 0:00:08]} 46. Nc6+ {[%clk 0:00:05]}  Kf7 {[%clk 0:00:08]} 47. Nd8+ {[%clk 0:00:04]}  Ke8 {[%clk 0:00:05]} 48. Ne6+ {[%clk 0:00:04]}  Kd7 {[%clk 0:00:05]} 49. Nf8+ {[%clk 0:00:03]}  Kc7 {[%clk 0:00:05]} 50. Qxa7+ {[%clk 0:00:02]}  Kd6 {[%clk 0:00:05]} 51. Qd7+ {[%clk 0:00:03]}  Ke5 {[%clk 0:00:06]} 52. Qxe7+ {[%clk 0:00:03]}  Kf4 {[%clk 0:00:07]} 53. Ne6+ {[%clk 0:00:00]}  Kg3 {[%clk 0:00:06]} 0-1


[Site "https://www.chess.com"]

[Event "Titled Tuesday Blitz May 30 Early 2023"]
[White "Baskakov, Egor"]
[Black "Lenaerts, Lennert"]
[WhiteFideId "24197866"]
[BlackFideId "211435"]
[WhiteElo "2225"]
[BlackElo "2334"]
[Result "1-0"]
[Round "07"]
[TimeControl "180+2"]
[Date "2023.05.30"]
[WhiteClock "0:02:40"]
[BlackClock "0:01:59"]

1. e4 {[%clk 0:03:00]}  e5 {[%clk 0:02:58]} 2. Nc3 {[%clk 0:03:00]}  Nf6 {[%clk 0:02:57]} 3. g3 {[%clk 0:03:00]}  Bc5 {[%clk 0:02:56]} 4. Bg2 {[%clk 0:02:59]}  c6 {[%clk 0:02:56]} 5. Nge2 {[%clk 0:02:59]}  d5 {[%clk 0:02:41]} 6. exd5 {[%clk 0:03:00]}  Nxd5 {[%clk 0:02:42]} 7. Nxd5 {[%clk 0:02:59]}  cxd5 {[%clk 0:02:42]} 8. d4 {[%clk 0:03:00]}  exd4 {[%clk 0:02:43]} 9. Nxd4 {[%clk 0:02:59]}  O-O {[%clk 0:02:43]} 10. O-O {[%clk 0:02:59]}  Bxd4 {[%clk 0:02:28]} 11. Qxd4 {[%clk 0:02:59]}  Be6 {[%clk 0:02:29]} 12. Bf4 {[%clk 0:02:56]}  Nc6 {[%clk 0:02:30]} 13. Qc5 {[%clk 0:02:56]}  Rc8 {[%clk 0:02:28]} 14. Rad1 {[%clk 0:02:53]}  Qf6 {[%clk 0:02:27]} 15. c3 {[%clk 0:02:50]}  Rfd8 {[%clk 0:02:20]} 16. Rfe1 {[%clk 0:02:44]}  d4 {[%clk 0:02:04]} 17. Bg5 {[%clk 0:02:42]}  Qf5 {[%clk 0:02:00]} 18. Qxf5 {[%clk 0:02:41]}  Bxf5 {[%clk 0:02:00]} 19. Bxd8 {[%clk 0:02:41]}  Rxd8 {[%clk 0:01:59]} 20. Bxc6 {[%clk 0:02:40]} 1-0


[Site "https://www.chess.com"]